bitfinex/quotes_SOLUSD_20220227
["timestamp","ask_amount","ask_price","bid_price","bid_amount"]
[1645975457596,36.25523832,90.929,90.784,111.5]
[1645975457897,36.25523832,90.929,90.785,6.25]
[1645975457898,35.45523832,90.929,90.785,6.25]
[1645975458097,31.05223832,90.929,90.786,4.402]
[1645975458300,10.402,90.928,90.8,13.28]
[1645975458497,4.402,90.928,90.81,16.5164]
[1645975458696,4.402,90.928,90.811,8.72928576]
[1645975458898,4.402,90.928,90.811,14.01928576]
[1645975459098,4.402,90.928,90.811,8.01928576]
[1645975459697,31.05223832,90.929,90.812,4.401]
[1645975459897,6.0,90.928,90.812,4.401]
[1645975460098,16.5188,90.92,90.811,7.76928576]
[1645975460299,4.402,90.919,90.811,7.76928576]
[1645975460597,1.39,90.91,90.811,5.29]
[1645975460801,31.47416617,90.889,90.741,2.5397529]
[1645975460999,16.5343,90.84,90.72,128.0306]
[1645975461199,34.84190749,90.838,90.714,2.26033655]
[1645975461403,4.406,90.837,90.714,2.26033655]
[1645975461602,33.66267227,90.837,90.714,2.26033655]
[1645975461799,36.40946148,90.837,90.714,2.26033655]
[1645975462006,16.5367,90.82,90.714,2.26033655]
[1645975462204,40.50467676,90.819,90.714,2.26033655]
[1645975462399,70.96754903,90.819,90.714,2.26033655]
[1645975462800,1.54846078,90.818,90.691,2.98610052]
[1645975463302,16.5391,90.8,90.691,2.98610052]
[1645975463500,30.59615543,90.798,90.686,2.56288725]
[1645975463699,10.408,90.797,90.686,2.56288725]
[1645975463899,2.74678921,90.799,90.687,4.408]
[1645975464101,4.408,90.811,90.7,13.28]
[1645975464300,16.5323,90.84,90.72,16.532]
[1645975464501,16.5323,90.84,90.721,13.07570668]
[1645975464900,28.76952725,90.839,90.723,2.81473308]
[1645975465202,28.76952725,90.839,90.726,2.38545331]
[1645975465500,8.74678921,90.838,90.727,6.0]
[1645975465699,4.406,90.837,90.711,6.88983601]
[1645975465903,8.74678921,90.838,90.712,10.56369]
[1645975466103,6.0,90.838,90.72,13.28]
[1645975466302,6.0,90.838,90.727,2.74678921]
[1645975466502,4.406,90.855,90.741,113.97841512]
[1645975466703,6.0,90.854,90.742,6.25]
[1645975466902,4.405,90.879,90.742,8.99678921]
[1645975466903,6.0,90.853,90.742,8.99678921]
[1645975467101,2.74678921,90.873,90.743,4.405]
[1645975467301,27.78855709,90.871,90.744,6.25]
[1645975467501,27.78855709,90.871,90.745,4.404]
[1645975467702,2.74678921,90.87,90.746,0.25]
[1645975467903,16.5289,90.86,90.747,4.404]
[1645975468404,7.15178921,90.859,90.731,2.97839616]
[1645975468603,9.01520037,90.859,90.73,13.28]
[1645975468803,29.27881613,90.858,90.731,4.405]
[1645975469004,16.5309,90.85,90.731,7.257995]
[1645975469204,6.1613067,90.849,90.731,2.852995]
[1645975469403,58.82719127,90.857,90.722,4.405]
[1645975469604,0.34226078,90.849,90.732,4.31274]
[1645975469803,6.80952843,90.848,90.732,4.31274]
[1645975470003,2.40452843,90.848,90.732,4.31274]
[1645975470204,16.5337,90.83,90.732,4.31274]
[1645975470403,36.06403299,90.829,90.732,4.31274]
[1645975470604,6.22646209,90.828,90.732,4.31274]
[1645975470804,8.9732513,90.828,90.732,4.31274]
[1645975471012,1.74431611,90.826,90.732,4.31274]
[1645975471207,16.5404,90.8,90.732,4.31274]
[1645975471504,26.42833386,90.799,90.732,4.31274]
[1645975471703,33.58112307,90.799,90.732,4.31274]
[1645975472304,2.74678921,90.798,90.732,4.31274]
[1645975472503,16.5416,90.79,90.732,4.31274]
[1645975473304,4.407,90.789,90.732,4.31274]
[1645975473508,16.5433,90.78,90.732,4.31274]
[1645975473705,31.58867857,90.778,90.732,4.31274]
[1645975473906,4.407,90.777,90.732,4.31274]
[1645975474107,31.58867857,90.778,90.732,4.31274]
[1645975474506,6.0,90.777,90.732,4.31274]
[1645975475108,16.5449,90.77,90.732,4.31274]
[1645975475308,4.407,90.769,90.67,2.41705165]
[1645975475508,1.70085343,90.769,90.67,2.41705165]
[1645975475708,6.81352843,90.768,90.656,2.93580862]
[1645975475907,111.5,90.767,90.656,2.93580862]
[1645975476111,4.409,90.766,90.656,2.93580862]
[1645975476309,16.5498,90.74,90.656,2.93580862]
[1645975476510,34.02078282,90.739,90.656,2.93580862]
[1645975476708,4.41,90.738,90.656,2.93580862]
[1645975476908,6.47226765,90.738,90.656,2.93580862]
[1645975477309,34.02078282,90.739,90.656,2.93580862]
[1645975478110,34.02078282,90.739,90.657,4.41]
[1645975478509,34.02078282,90.739,90.656,2.93580862]
[1645975478713,36.76757203,90.739,90.656,2.93580862]
[1645975478912,6.0,90.738,90.656,2.93580862]
[1645975479311,34.02078282,90.739,90.656,2.93580862]
[1645975480417,34.02078282,90.739,90.657,0.25]
[1645975480618,16.5483,90.76,90.657,0.25]
[1645975481115,26.9275,90.807,90.657,17.03113273]
[1645975481319,14.75668,90.798,90.658,123.18664789]
[1645975481517,34.46936452,90.797,90.671,111.5]
[1645975481716,34.46936452,90.797,90.69,16.5383]
[1645975481916,4.408,90.796,90.691,2.96988931]
[1645975482321,2.74678921,90.795,90.691,2.96988931]
[1645975482616,34.46936452,90.797,90.691,2.96988931]
[1645975482816,34.46936452,90.797,90.692,0.25]
[1645975483217,16.5401,90.79,90.691,2.96988931]
[1645975483418,16.5401,90.79,90.692,0.25]
[1645975483820,0.34226078,90.805,90.7,16.5371]
[1645975484018,0.34226078,90.805,90.701,0.25]
[1645975484217,4.407,90.839,90.701,114.30744518]
[1645975484417,4.407,90.839,90.702,8.31558811]
[1645975484617,4.407,90.839,90.703,0.25]
[1645975484818,28.46570595,90.838,90.703,0.25]
[1645975485018,4.406,90.837,90.703,0.25]
[1645975485218,4.34868,90.836,90.703,0.25]
[1645975485420,16.5324,90.83,90.71,16.5356]
[1645975485718,8.75468,90.829,90.711,8.70652552]
[1645975485919,4.34868,90.829,90.711,8.70652552]
[1645975486321,4.34868,90.829,90.712,178.57]
[1645975486517,4.34868,90.829,90.714,111.5]
[1645975486723,16.5342,90.82,90.73,16.5319]
[1645975486918,16.5342,90.82,90.731,2.47834926]
[1645975486919,4.34868,90.818,90.731,2.47834926]
[1645975488722,4.34868,90.818,90.731,113.97834926]
[1645975488926,4.34868,90.818,90.732,3.32826768]
[1645975489146,4.34868,90.818,90.741,111.5]
[1645975489343,4.34868,90.818,90.742,2.57007959]
[1645975489542,4.34868,90.818,90.742,2.82007959]
[1645975489953,4.34868,90.818,90.748,111.5]
[1645975490143,4.34868,90.818,90.751,2.6312238]
[1645975490344,4.34868,90.818,90.771,111.5]
[1645975490545,4.34868,90.818,90.772,3.11812494]
[1645975490946,1.2578302,90.84,90.772,3.11812494]
[1645975491146,1.2578302,90.84,90.775,2.33473615]
[1645975491347,1.2578302,90.84,90.776,6.25]
[1645975491552,1.2578302,90.84,90.778,2.66375304]
[1645975491746,5.8984101,90.915,90.78,111.5]
[1645975491948,5.8984101,90.915,90.791,111.5]
[1645975491949,16.5198,90.9,90.791,111.5]
[1645975492149,4.402,90.899,90.791,2.81924995]
[1645975492348,111.5,90.897,90.791,2.81924995]
[1645975492548,111.5,90.897,90.772,2.52924536]
[1645975492748,1.10671176,90.894,90.772,2.52924536]
[1645975493249,118.30652843,90.893,90.772,2.52924536]
[1645975493450,111.5,90.889,90.772,2.52924536]
[1645975493648,4.402,90.888,90.772,2.52924536]
[1645975493849,7.99699577,90.888,90.772,2.52924536]
[1645975494054,111.5,90.887,90.75,16.5279]
[1645975494250,111.5,90.887,90.673,5.0]
[1645975494251,111.5,90.885,90.754,2.59119135]
[1645975494650,111.5,90.883,90.754,2.59119135]
[1645975494849,111.5,90.869,90.754,2.59119135]
[1645975495048,13.28,90.87,90.754,2.59119135]
[1645975495049,16.5283,90.86,90.754,2.59119135]
[1645975495249,29.8083,90.86,90.754,2.59119135]
[1645975495449,115.67443839,90.859,90.754,2.59119135]
[1645975495650,1.46068116,90.858,90.754,2.59119135]
[1645975495850,4.404,90.857,90.754,2.59119135]
[1645975496050,111.5,90.839,90.737,22.53]
[1645975496251,111.5,90.837,90.738,2.71854134]
[1645975496553,1.39165328,90.836,90.738,2.71854134]
[1645975496952,1.73391406,90.836,90.738,2.71854134]
[1645975497150,2.74678921,90.835,90.738,2.71854134]
[1645975497552,28.59970633,90.819,90.738,2.71854134]
[1645975499854,28.59970633,90.819,90.739,0.25]
[1645975500054,16.5309,90.84,90.739,3.11641621]
[1645975500255,4.406,90.859,90.739,3.11641621]
[1645975500453,13.28,90.89,90.74,200.59678921]
[1645975500655,4.404,90.88,90.742,178.57]
[1645975500854,16.5237,90.88,90.771,111.5]
[1645975501054,31.36651287,90.879,90.772,3.07633578]
[1645975501856,34.11330208,90.879,90.772,3.07633578]
[1645975502454,31.36651287,90.879,90.781,111.5]
[1645975502656,2.74678921,90.903,90.782,2.52601539]
[1645975502855,6.0,90.902,90.783,0.25]
[1645975503055,4.402,90.919,90.78,13.28]
[1645975503356,4.402,90.929,90.792,67.07]
[1645975503554,16.5146,90.93,90.83,16.5138]
[1645975503756,4.401,90.929,90.831,2.85351019]
[1645975504162,31.6561858,90.935,90.831,2.85351019]
[1645975504358,2.74678921,90.928,90.812,2.91326079]
[1645975504556,4.401,90.927,90.812,2.91326079]
[1645975504758,6.0,90.926,90.812,2.91326079]
[1645975504958,6.0,90.925,90.812,2.91326079]
[1645975505158,112.2,90.919,90.812,2.91326079]
[1645975505360,26.49680774,90.918,90.812,2.91326079]
[1645975505758,26.49680774,90.918,90.813,0.25]
[1645975505959,26.49680774,90.918,90.812,2.91326079]
[1645975505960,30.89880774,90.918,90.812,2.91326079]
[1645975506159,30.89880774,90.918,90.813,0.25]
[1645975506560,26.49680774,90.918,90.813,0.25]
[1645975506764,26.49680774,90.918,90.812,2.91326079]
[1645975507462,16.5177,90.91,90.812,114.41326079]
[1645975507668,112.2,90.919,90.821,111.5]
[1645975507862,57.79548921,90.95,90.811,49.3974]
[1645975507863,111.5,90.947,90.822,2.39691735]
[1645975508062,18.03439243,90.948,90.816,2.67824366]
[1645975508369,27.77599325,90.946,90.816,2.67824366]
[1645975508564,147.68542581,90.929,90.816,2.67824366]
[1645975508862,111.5,90.927,90.816,2.67824366]
[1645975509063,4.401,90.926,90.816,2.67824366]
[1645975509267,118.64778921,90.926,90.816,2.67824366]
[1645975509665,16.5184,90.91,90.816,2.67824366]
[1645975509866,30.83077403,90.909,90.816,2.67824366]
[1645975510266,111.5,90.908,90.816,2.67824366]
[1645975510669,1.76899844,90.898,90.777,2.27949869]
[1645975511065,111.5,90.896,90.777,2.27949869]
[1645975511269,29.18670555,90.895,90.777,113.77949869]
[1645975511467,31.59123398,90.895,90.778,2.36325661]
[1645975511668,27.01089992,90.879,90.781,2.92278246]
[1645975511870,27.01089992,90.879,90.782,7.04536878]
[1645975512066,4.402,90.914,90.782,0.25]
[1645975512268,4.402,90.914,90.784,111.5]
[1645975512467,2.06226765,90.923,90.785,4.652]
[1645975512670,6.0,90.922,90.787,2.58877175]
[1645975512869,6.0,90.922,90.788,4.652]
[1645975513068,4.402,90.921,90.788,0.25]
[1645975513270,31.85758644,90.92,90.79,2.90349742]
[1645975513469,16.5203,90.9,90.791,111.75]
[1645975513669,25.98963812,90.899,90.792,2.37340329]
[1645975513868,25.98963812,90.899,90.793,0.25]
[1645975514272,25.98963812,90.899,90.792,2.37340329]
[1645975514472,111.84226078,90.898,90.792,2.37340329]
[1645975514672,111.5,90.889,90.792,2.37340329]
[1645975514970,111.5,90.889,90.751,3.06154669]
[1645975514971,111.5,90.877,90.751,3.06154669]
[1645975515170,111.5,90.875,90.733,2.73806195]
[1645975515370,113.08433634,90.869,90.733,2.73806195]
[1645975515671,111.5,90.859,90.733,2.73806195]
[1645975515871,111.5,90.857,90.733,2.73806195]
[1645975516073,111.5,90.855,90.733,2.73806195]
[1645975516274,111.5,90.853,90.733,2.73806195]
[1645975516472,111.5,90.839,90.687,111.5]
[1645975516673,111.5,90.837,90.688,2.60029052]
[1645975516873,111.5,90.829,90.688,2.60029052]
[1645975517074,111.5,90.819,90.688,2.60029052]
[1645975517471,111.5,90.817,90.688,2.60029052]
[1645975517772,1.86387716,90.816,90.688,2.60029052]
[1645975518172,2.74678921,90.815,90.688,2.60029052]
[1645975518373,13.28,90.81,90.688,2.60029052]
[1645975518673,31.2446461,90.789,90.688,2.60029052]
[1645975518873,6.0,90.788,90.688,2.60029052]
[1645975520481,16.5413,90.78,90.688,2.60029052]
[1645975520675,16.5413,90.78,90.689,0.25]
[1645975521076,31.2446461,90.789,90.693,111.5]
[1645975521278,25.33785693,90.839,90.693,111.5]
[1645975521279,4.408,90.838,90.695,111.5]
[1645975521578,28.1106,90.839,90.698,2.27906522]
[1645975521777,2.74678921,90.838,90.699,0.25]
[1645975521977,2.74678921,90.838,90.7,4.406]
[1645975522179,26.43014416,90.836,90.701,0.25]
[1645975522376,26.43014416,90.836,90.698,2.27906522]
[1645975522576,16.5346,90.82,90.71,16.5348]
[1645975522775,16.5346,90.82,90.699,4.406]
[1645975522776,36.51363837,90.819,90.711,2.88258628]
[1645975522976,111.5,90.818,90.697,6.69788601]
[1645975523178,114.24678921,90.818,90.697,2.29188601]
[1645975523377,111.5,90.816,90.687,2.43247516]
[1645975523579,16.5393,90.79,90.688,6.0]
[1645975523776,30.9068934,90.789,90.688,6.0]
[1645975524276,6.0,90.788,90.688,6.0]
[1645975524676,6.0,90.788,90.687,2.43247516]
[1645975525480,16.5421,90.78,90.687,2.43247516]
[1645975526078,113.38452108,90.779,90.687,2.43247516]
[1645975526279,4.408,90.778,90.687,2.43247516]
[1645975526479,1.67476168,90.776,90.653,46.4148]
[1645975526678,111.5,90.773,90.654,3.03253102]
[1645975526878,13.28,90.76,90.654,3.03253102]
[1645975527078,16.5508,90.73,90.654,3.03253102]
[1645975527278,26.74370061,90.729,90.654,3.03253102]
[1645975527978,6.0,90.728,90.654,3.03253102]
[1645975528181,6.0,90.728,90.631,3.11216576]
[1645975529578,16.5525,90.72,90.631,3.11216576]
[1645975530679,16.5525,90.72,90.618,2.52016055]
[1645975530878,16.5525,90.72,90.619,4.66]
[1645975531483,6.0,90.719,90.621,111.5]
[1645975531684,6.0,90.719,90.622,2.49710978]
[1645975531880,16.5525,90.72,90.622,2.49710978]
[1645975531881,16.5525,90.72,90.623,0.25]
[1645975532079,0.48079147,104.5,90.623,0.25]
[1645975532080,27.2589,90.769,90.626,67.07]
[1645975532279,17.689,90.79,90.649,178.57]
[1645975532481,4.409,90.79,90.652,2.33724974]
[1645975532679,4.409,90.79,90.653,4.659]
[1645975532882,30.71190501,90.791,90.656,2.89982962]
[1645975533080,30.71190501,90.791,90.662,2.28669896]
[1645975533280,30.71190501,90.791,90.665,3.1118346]
[1645975533580,30.71190501,90.791,90.681,111.5]
[1645975533581,16.5419,90.78,90.681,111.5]
[1645975533781,30.71190501,90.791,90.682,70.12392101]
[1645975533981,30.71190501,90.791,90.689,111.5]
[1645975534184,30.71190501,90.791,90.699,111.5]
[1645975534381,75.5125,90.843,90.702,2.48111724]
[1645975534584,4.407,90.849,90.711,111.5]
[1645975534780,6.0,90.838,90.713,111.5]
[1645975534981,6.0,90.838,90.716,2.91679682]
[1645975535183,4.406,90.859,90.718,111.5]
[1645975535385,39.67131587,90.858,90.72,111.5]
[1645975535682,42.41810508,90.858,90.723,2.84984016]
[1645975535882,25.94007816,90.857,90.726,2.8650692]
[1645975536081,111.5,90.856,90.729,2.99899595]
[1645975536281,111.5,90.856,90.73,0.25]
[1645975536282,16.5309,90.84,90.73,0.25]
[1645975536482,27.55101795,90.839,90.724,0.25]
[1645975537082,50.7443069,90.839,90.724,0.25]
[1645975537481,27.55101795,90.839,90.73,16.5317]
[1645975537682,27.55101795,90.839,90.731,111.75]
[1645975537907,27.55101795,90.839,90.732,2.42903842]
[1645975538083,27.55101795,90.839,90.733,0.25]
[1645975539187,27.55101795,90.839,90.741,2.51708834]
[1645975539387,27.55101795,90.839,90.742,0.25]
[1645975539684,6.0,90.838,90.742,0.25]
[1645975539985,27.55101795,90.839,90.742,0.25]
[1645975540488,27.55101795,90.839,90.761,111.5]
[1645975540684,27.55101795,90.839,90.762,3.0937118]
[1645975541284,27.55101795,90.839,90.763,0.25]
[1645975542086,13.63339243,90.876,90.763,0.25]
[1645975542288,6.0,90.875,90.77,83.5942]
[1645975542486,6.0,90.875,90.772,3.05180852]
[1645975542685,55.0782,90.9,90.773,0.25]
[1645975542888,13.63339243,90.896,90.775,3.11616259]
[1645975543089,6.0,90.895,90.781,111.5]
[1645975543288,31.70379288,90.904,90.791,111.5]
[1645975543488,2.74678921,90.915,90.811,111.5]
[1645975543690,13.63339243,90.922,90.812,2.73329102]
[1645975543890,4.402,90.947,90.814,111.5]
[1645975544091,2.74678921,90.944,90.817,2.52260058]
[1645975544290,2.74678921,90.944,90.818,0.25]
[1645975544491,27.81307032,90.943,90.82,2.50321538]
[1645975544691,27.81307032,90.943,90.821,0.25]
[1645975544892,6.0,90.942,90.821,0.25]
[1645975545091,30.55985953,90.943,90.822,111.5]
[1645975545294,30.55985953,90.943,90.83,128.0127]
[1645975545494,27.81307032,90.943,90.831,9.2758641]
[1645975545696,2.74678921,90.953,90.832,111.5]
[1645975545893,97.6563,90.984,90.832,111.5]
[1645975545894,25.20221639,90.971,90.833,77.72]
[1645975546094,0.34226078,90.961,90.834,111.5]
[1645975546293,0.34226078,90.961,90.836,111.5]
[1645975546493,2.74678921,90.971,90.841,111.5]
[1645975546696,42.71487845,90.97,90.85,16.5085]
[1645975546896,42.71487845,90.97,90.851,2.60902108]
[1645975547095,0.68452156,90.969,90.851,2.60902108]
[1645975547295,13.14578921,90.969,90.851,2.60902108]
[1645975547496,13.14578921,90.969,90.851,0.25]
[1645975547697,8.74678921,90.969,90.851,0.25]
[1645975547895,2.74678921,90.969,90.846,111.5]
[1645975548096,2.74678921,90.969,90.845,6.25]
[1645975548097,2.74678921,90.969,90.861,111.5]
[1645975548298,2.74678921,90.969,90.862,8.58741508]
[1645975548497,2.74678921,90.969,90.862,2.58741508]
[1645975548695,2.74678921,90.969,90.862,0.25]
[1645975548896,2.74678921,90.969,90.845,2.70936874]
[1645975549098,2.74678921,90.969,90.846,0.25]
[1645975549302,25.31662228,90.968,90.85,16.5088]
[1645975549498,26.20797845,90.97,90.86,13.28]
[1645975549697,26.20797845,90.97,90.861,0.25]
[1645975550103,26.20797845,90.97,90.861,3.28854124]
[1645975550303,45.46176766,90.97,90.87,16.5051]
[1645975550502,6.0,90.969,90.871,2.48366016]
[1645975551204,28.95476766,90.97,90.871,2.48366016]
[1645975551411,28.95476766,90.97,90.716,39.2]
[1645975551412,111.5,90.967,90.755,70.8303764]
[1645975551606,111.5,90.929,90.756,2.89188664]
[1645975551807,0.34226078,90.871,90.742,74.21451739]
[1645975552006,124.78,90.86,90.729,3.10663501]
[1645975552204,111.5,90.858,90.688,2.40527666]
[1645975552407,16.5415,90.81,90.737,0.52206514]
[1645975552803,4.406,90.848,90.737,0.52206514]
[1645975553020,13.28,90.85,90.737,0.52206514]
[1645975553225,2.74678921,90.847,90.737,0.52206514]
[1645975553624,55.0661,90.92,90.741,111.5]
[1645975553825,13.28,90.91,90.753,111.5]
[1645975554022,13.28,90.93,90.759,111.5]
[1645975554222,22.515,90.948,90.773,178.57]
[1645975554223,1.83260534,90.94,90.773,178.57]
[1645975554424,2.74678921,90.929,90.775,111.5]
[1645975554624,2.74678921,90.929,90.78,29.7992]
[1645975554625,16.5181,90.91,90.78,29.7992]
[1645975554826,31.92892096,90.909,90.781,2.75991894]
[1645975555024,62.32593513,90.909,90.781,2.75991894]
[1645975555224,27.65022496,90.909,90.782,6.0]
[1645975555427,2.74678921,90.908,90.791,67.07]
[1645975555629,24.71939432,90.923,90.795,67.07]
[1645975555827,55.0419,90.96,90.811,111.5]
[1645975556027,1.80001761,90.959,90.813,111.5]
[1645975556232,12.80585416,90.95,90.814,8.9394101]
[1645975556428,1.64517923,90.949,90.814,8.9394101]
[1645975556627,16.5135,90.94,90.82,16.5128]
[1645975556828,36.50139598,90.939,90.821,8.76515704]
[1645975557028,36.84365676,90.939,90.821,8.76515704]
[1645975557228,39.24818519,90.939,90.822,111.5]
[1645975557429,33.24818519,90.939,90.824,111.5]
[1645975557627,33.24818519,90.939,90.826,111.5]
[1645975557827,16.5142,90.93,90.827,8.67875455]
[1645975558030,16.5142,90.93,90.827,6.0]
[1645975558229,2.74678921,90.929,90.828,0.25]
[1645975558428,16.5142,90.93,90.828,0.25]
[1645975558628,30.50139598,90.939,90.828,0.25]
[1645975558830,12.86489002,90.954,90.828,0.25]
[1645975558831,2.74678921,90.951,90.828,0.25]
[1645975559030,2.74678921,90.961,90.831,111.5]
[1645975559229,2.74678921,90.961,90.833,178.57]
[1645975559428,1.87408332,90.99,90.833,178.57]
[1645975559429,2.74678921,90.971,90.835,111.5]
[1645975559630,6.0,90.97,90.838,2.43204824]
[1645975559828,6.0,90.97,90.851,111.5]
[1645975560031,29.41032656,90.969,90.852,6.25]
[1645975560231,29.41032656,90.969,90.851,2.33676939]
[1645975560432,29.41032656,90.969,90.852,6.25]
[1645975560630,6.0,90.97,90.852,14.96]
[1645975560831,6.0,90.97,90.853,69.67333495]
[1645975561033,6.0,90.985,90.855,111.5]
[1645975561231,2.74678921,90.986,90.871,111.5]
[1645975561435,2.74678921,90.998,90.883,178.57]
[1645975561633,12.86489002,91.019,90.883,178.57]
[1645975561634,12.86489002,91.019,90.886,2.89213056]
[1645975561834,2.74678921,91.019,90.9,13.28]
[1645975562035,72.7166,91.059,90.904,2.91769111]
[1645975562233,74.57181131,91.059,90.906,111.5]
[1645975562433,1.85521131,91.059,90.931,111.5]
[1645975562632,115.007,91.077,90.934,3.04436095]
[1645975562633,1.69417516,91.075,90.934,3.04436095]
[1645975562835,31.62635938,91.074,90.942,2.60733309]
[1645975563033,44.4912494,91.074,90.95,13.28]
[1645975563233,44.4912494,91.074,90.936,2.93632605]
[1645975563234,13.28,91.07,90.936,2.93632605]
[1645975563432,6.05881002,91.069,90.937,6.0]
[1645975563632,16.494,91.05,90.937,6.0]
[1645975563832,35.83952188,91.048,90.937,6.0]
[1645975564035,35.83952188,91.048,90.921,8.56739431]
[1645975564233,4.30979161,91.047,90.913,3.03319918]
[1645975564432,6.04251583,91.046,90.914,6.0]
[1645975564632,8.78930504,91.046,90.913,3.03319918]
[1645975564831,16.4956,91.04,90.913,3.03319918]
[1645975565032,13.28,91.03,90.912,24.9178]
[1645975565236,36.49579915,91.029,90.913,2.95151005]
[1645975565432,1.39,91.02,90.857,2.60735269]
[1645975565632,13.28,91.01,90.799,16.2422]
[1645975565833,13.28,91.01,90.794,2.70827409]
[1645975565834,16.5166,90.94,90.8,16.5159]
[1645975566033,1.82704286,90.939,90.801,2.94213592]
[1645975566233,16.5166,90.94,90.802,2.57041478]
[1645975566434,16.5166,90.94,90.804,111.5]
[1645975566636,16.5166,90.94,90.805,2.37434691]
[1645975567035,16.5166,90.94,90.797,2.32498771]
[1645975567235,19.26338921,90.94,90.82,16.5122]
[1645975567436,40.46842601,90.939,90.821,2.26681105]
[1645975567837,40.46842601,90.939,90.822,0.25]
[1645975568236,34.46842601,90.939,90.803,178.57]
[1645975568438,34.46842601,90.939,90.804,2.60573524]
[1645975568737,34.46842601,90.939,90.831,2.67614348]
[1645975568937,2.74678921,90.965,90.833,111.5]
[1645975569141,6.0,90.964,90.835,111.5]
[1645975569339,4.55883029,90.979,90.837,111.5]
[1645975569538,4.55883029,90.979,90.839,111.5]
[1645975569739,6.0,90.978,90.841,111.5]
[1645975569941,26.46180108,90.977,90.86,16.5057]
[1645975570139,26.46180108,90.977,90.861,2.66684844]
[1645975570140,16.5079,90.97,90.861,2.66684844]
[1645975570340,16.5079,90.97,90.842,6.25]
[1645975570341,13.28,90.96,90.842,0.25]
[1645975570545,30.6884654,90.959,90.842,0.25]
[1645975571342,1.44929242,90.958,90.84,16.509]
[1645975571545,30.6884654,90.959,90.841,9.1030247]
[1645975572043,1.71487966,90.958,90.841,0.25]
[1645975572242,1.71487966,90.958,90.811,2.27219779]
[1645975572443,1.67029744,90.949,90.831,2.64401975]
[1645975572844,1.67029744,90.949,90.822,0.52206514]
[1645975573044,4.401,90.948,90.822,0.52206514]
[1645975573244,13.28,90.95,90.822,0.52206514]
[1645975573643,1.35843828,90.949,90.822,0.52206514]
[1645975574544,6.0,90.948,90.83,16.5113]
[1645975574746,6.0,90.948,90.831,9.10719625]
[1645975574944,6.0,90.948,90.831,3.10719625]
[1645975575647,16.5131,90.94,90.831,3.10719625]
[1645975575847,29.24297396,90.939,90.831,3.10719625]
[1645975576049,1.82573822,90.938,90.831,3.10719625]
[1645975576649,27.52151152,90.939,90.84,16.5097]
[1645975576851,27.52151152,90.939,90.841,3.13086484]
[1645975577350,1.41346197,90.957,90.841,0.25]
[1645975577551,1.5886501,90.983,90.841,0.25]
[1645975577749,5.89069242,91.008,90.851,67.07]
[1645975577957,1.49169242,91.008,90.853,67.07]
[1645975578251,13.28,91.01,90.872,2.99224932]
[1645975578452,36.064606,90.999,90.875,3.11724555]
[1645975578651,36.064606,90.999,90.877,67.07]
[1645975578851,36.064606,90.999,90.891,2.78669956]
[1645975579050,36.064606,90.999,90.892,6.25]
[1645975579270,36.064606,90.999,90.892,13.48]
[1645975579671,22.8348,91.027,90.894,2.92167202]
[1645975579975,22.8348,91.027,90.893,67.07]
[1645975579976,22.8348,91.027,90.897,2.83533406]
[1645975580171,22.8348,91.027,90.899,67.07]
[1645975580370,13.28,91.04,90.902,2.92248172]
[1645975580579,147.42095777,91.05,90.905,2.38089949]
[1645975580580,32.74725581,91.048,90.905,2.38089949]
[1645975580775,8.29962008,91.067,90.921,69.66466032]
[1645975580985,8.29962008,91.067,90.922,8.54222299]
[1645975581273,0.55163875,91.08,90.924,3.09006622]
[1645975581474,0.55163875,91.08,90.933,5.0]
[1645975581673,0.55163875,91.08,90.971,111.5]
[1645975581870,0.55163875,91.08,90.973,111.5]
[1645975582074,0.55163875,91.08,90.975,111.5]
[1645975582272,0.55163875,91.08,90.978,2.38792502]
[1645975582477,0.55163875,91.08,90.98,111.5]
[1645975582671,0.55163875,91.08,90.984,111.5]